[Event "Titled Tuesday Blitz April 19 Late 2022"]
[White "Sarana, Alexey"]
[Black "Petesch, Gabriel"]
[WhiteFideId "24133795"]
[BlackFideId "2032465"]
[WhiteElo "2666"]
[BlackElo "2374"]
[Result "1-0"]
[Round "01"]
[TimeControl "180+1"]
[Date "2022.04.19"]
[WhiteClock "0:00:11"]
[BlackClock "0:00:03"]

1. d4 {[%clk 0:02:59]}  e6 {[%clk 0:02:54]} 2. c4 {[%clk 0:02:57]}  Nf6 {[%clk 0:02:50]} 3. Nc3 {[%clk 0:02:57]}  Bb4 {[%clk 0:02:42]} 4. Qc2 {[%clk 0:02:57]}  b6 {[%clk 0:02:39]} 5. e4 {[%clk 0:02:57]}  Bb7 {[%clk 0:02:37]} 6. Bd3 {[%clk 0:02:57]}  Nc6 {[%clk 0:02:29]} 7. Ne2 {[%clk 0:02:55]}  e5 {[%clk 0:02:22]} 8. d5 {[%clk 0:02:54]}  Nd4 {[%clk 0:02:20]} 9. Nxd4 {[%clk 0:02:52]}  exd4 {[%clk 0:02:19]} 10. a3 {[%clk 0:02:52]}  Bxc3+ {[%clk 0:01:41]} 11. bxc3 {[%clk 0:02:52]}  dxc3 {[%clk 0:01:40]} 12. Qxc3 {[%clk 0:02:50]}  d6 {[%clk 0:01:37]} 13. O-O {[%clk 0:02:50]}  h6 {[%clk 0:01:37]} 14. f4 {[%clk 0:02:50]}  O-O {[%clk 0:01:34]} 15. e5 {[%clk 0:02:47]}  Nd7 {[%clk 0:01:32]} 16. Bb2 {[%clk 0:02:46]}  f6 {[%clk 0:01:27]} 17. e6 {[%clk 0:02:46]}  Nc5 {[%clk 0:01:26]} 18. Bg6 {[%clk 0:02:46]}  Na4 {[%clk 0:01:15]} 19. Qc2 {[%clk 0:02:46]}  Nxb2 {[%clk 0:01:16]} 20. Qxb2 {[%clk 0:02:46]}  Qe7 {[%clk 0:01:14]} 21. f5 {[%clk 0:02:46]}  Rfc8 {[%clk 0:01:12]} 22. Bh5 {[%clk 0:02:39]}  c6 {[%clk 0:01:12]} 23. Bf3 {[%clk 0:02:39]}  Rc7 {[%clk 0:01:11]} 24. a4 {[%clk 0:02:33]}  cxd5 {[%clk 0:01:04]} 25. Bxd5 {[%clk 0:02:25]}  Rac8 {[%clk 0:01:03]} 26. h3 {[%clk 0:02:13]}  Ba6 {[%clk 0:01:03]} 27. a5 {[%clk 0:02:09]}  Bxc4 {[%clk 0:00:55]} 28. Bxc4 {[%clk 0:02:10]}  Rxc4 {[%clk 0:00:56]} 29. axb6 {[%clk 0:02:11]}  axb6 {[%clk 0:00:25]} 30. Qxb6 {[%clk 0:02:11]}  R4c6 {[%clk 0:00:22]} 31. Qa7 {[%clk 0:02:03]}  R6c7 {[%clk 0:00:22]} 32. Qf2 {[%clk 0:02:01]}  Rc2 {[%clk 0:00:21]} 33. Qg3 {[%clk 0:02:01]}  R2c3 {[%clk 0:00:21]} 34. Qg6 {[%clk 0:01:55]}  d5 {[%clk 0:00:20]} 35. Rad1 {[%clk 0:01:53]}  Rd8 {[%clk 0:00:20]} 36. Qg4 {[%clk 0:01:47]}  d4 {[%clk 0:00:18]} 37. Kh1 {[%clk 0:01:26]}  d3 {[%clk 0:00:18]} 38. Rd2 {[%clk 0:01:26]}  Rc2 {[%clk 0:00:18]} 39. Rdd1 {[%clk 0:01:21]}  d2 {[%clk 0:00:17]} 40. Qe4 {[%clk 0:01:21]}  Qc5 {[%clk 0:00:11]} 41. Kh2 {[%clk 0:01:17]}  Qc7+ {[%clk 0:00:11]} 42. Kg1 {[%clk 0:01:17]}  Rc4 {[%clk 0:00:10]} 43. Qe2 {[%clk 0:01:15]}  Qc5+ {[%clk 0:00:07]} 44. Kh1 {[%clk 0:01:14]}  Rcd4 {[%clk 0:00:07]} 45. Qh5 {[%clk 0:01:08]}  R4d5 {[%clk 0:00:07]} 46. Rf3 {[%clk 0:01:02]}  Qe7 {[%clk 0:00:06]} 47. Rf2 {[%clk 0:01:02]}  Qxe6 {[%clk 0:00:03]} 48. Rfxd2 {[%clk 0:00:58]}  Qe5 {[%clk 0:00:01]} 49. Rxd5 {[%clk 0:00:43]}  Rxd5 {[%clk 0:00:02]} 50. Rf1 {[%clk 0:00:44]}  Qe7 {[%clk 0:00:02]} 51. Qf3 {[%clk 0:00:43]}  Rd8 {[%clk 0:00:02]} 52. Qg4 {[%clk 0:00:43]}  Qf7 {[%clk 0:00:02]} 53. Re1 {[%clk 0:00:43]}  Re8 {[%clk 0:00:03]} 54. Rd1 {[%clk 0:00:43]}  Rf8 {[%clk 0:00:04]} 55. h4 {[%clk 0:00:43]}  Re8 {[%clk 0:00:04]} 56. Kh2 {[%clk 0:00:43]}  Qc7+ {[%clk 0:00:04]} 57. g3 {[%clk 0:00:41]}  Qf7 {[%clk 0:00:05]} 58. Kh3 {[%clk 0:00:41]}  Qe7 {[%clk 0:00:05]} 59. Qg6 {[%clk 0:00:36]}  Qf7 {[%clk 0:00:04]} 60. Qg4 {[%clk 0:00:29]}  Rf8 {[%clk 0:00:04]} 61. Re1 {[%clk 0:00:28]}  Re8 {[%clk 0:00:05]} 62. Rc1 {[%clk 0:00:27]}  h5 {[%clk 0:00:04]} 63. Qf3 {[%clk 0:00:27]}  Rf8 {[%clk 0:00:03]} 64. Re1 {[%clk 0:00:26]}  Re8 {[%clk 0:00:03]} 65. Rd1 {[%clk 0:00:27]}  Rf8 {[%clk 0:00:03]} 66. Rb1 {[%clk 0:00:25]}  Re8 {[%clk 0:00:03]} 67. Rb7 {[%clk 0:00:25]}  Qa2 {[%clk 0:00:02]} 68. Qxh5 {[%clk 0:00:22]}  Rf8 {[%clk 0:00:02]} 69. Qg6 {[%clk 0:00:21]}  Rf7 {[%clk 0:00:01]} 70. Qxf7+ {[%clk 0:00:14]}  Qxf7 {[%clk 0:00:02]} 71. Rxf7 {[%clk 0:00:14]}  Kxf7 {[%clk 0:00:03]} 72. Kg4 {[%clk 0:00:15]}  Kg8 {[%clk 0:00:03]} 73. Kf4 {[%clk 0:00:15]}  Kh7 {[%clk 0:00:03]} 74. Ke4 {[%clk 0:00:15]}  Kh6 {[%clk 0:00:03]} 75. g4 {[%clk 0:00:15]}  Kh7 {[%clk 0:00:03]} 76. Kd5 {[%clk 0:00:15]}  Kg8 {[%clk 0:00:03]} 77. Ke6 {[%clk 0:00:15]}  Kf8 {[%clk 0:00:04]} 78. h5 {[%clk 0:00:10]}  Kg8 {[%clk 0:00:03]} 79. h6 {[%clk 0:00:10]}  gxh6 {[%clk 0:00:03]} 80. Kxf6 {[%clk 0:00:11]}  Kh7 {[%clk 0:00:03]} 81. Kf7 {[%clk 0:00:11]} 1-0


[Site "https://www.chess.com"]

[Event "Titled Tuesday Blitz April 19 Late 2022"]
[White "Sernecki, Franciszek"]
[Black "Mirza, Diana"]
[WhiteFideId "1169297"]
[BlackFideId "2503999"]
[WhiteElo "2165"]
[BlackElo "1813"]
[Result "1-0"]
[Round "01"]
[TimeControl "180+1"]
[Date "2022.04.19"]
[WhiteClock "0:00:21"]
[BlackClock "0:00:21"]

1. e4 {[%clk 0:03:00]}  d5 {[%clk 0:02:51]} 2. exd5 {[%clk 0:02:59]}  Nf6 {[%clk 0:02:50]} 3. c4 {[%clk 0:02:54]}  Bf5 {[%clk 0:02:36]} 4. Nc3 {[%clk 0:02:46]}  c6 {[%clk 0:02:29]} 5. Nf3 {[%clk 0:02:43]}  cxd5 {[%clk 0:02:25]} 6. d4 {[%clk 0:02:42]}  dxc4 {[%clk 0:02:24]} 7. Bxc4 {[%clk 0:02:42]}  Nc6 {[%clk 0:02:23]} 8. Qb3 {[%clk 0:02:18]}  e6 {[%clk 0:01:59]} 9. Qxb7 {[%clk 0:02:17]}  Nb4 {[%clk 0:01:54]} 10. Bb5+ {[%clk 0:02:11]}  Nd7 {[%clk 0:01:45]} 11. Bxd7+ {[%clk 0:02:01]}  Qxd7 {[%clk 0:01:41]} 12. Qxa8+ {[%clk 0:02:00]}  Ke7 {[%clk 0:01:37]} 13. O-O {[%clk 0:01:56]}  g6 {[%clk 0:01:26]} 14. Qb8 {[%clk 0:01:19]}  Nc2 {[%clk 0:01:18]} 15. Rb1 {[%clk 0:01:08]}  Bg7 {[%clk 0:01:10]} 16. Qg3 {[%clk 0:01:00]}  Nxd4 {[%clk 0:01:08]} 17. Bg5+ {[%clk 0:00:57]}  f6 {[%clk 0:01:04]} 18. Nxd4 {[%clk 0:00:49]}  Bxb1 {[%clk 0:01:04]} 19. Rxb1 {[%clk 0:00:44]}  fxg5 {[%clk 0:00:58]} 20. Nf3 {[%clk 0:00:40]}  h6 {[%clk 0:00:43]} 21. Re1 {[%clk 0:00:38]}  Rb8 {[%clk 0:00:35]} 22. Qxb8 {[%clk 0:00:33]}  g4 {[%clk 0:00:32]} 23. Qb4+ {[%clk 0:00:32]}  Kf7 {[%clk 0:00:31]} 24. Qxg4 {[%clk 0:00:30]}  h5 {[%clk 0:00:27]} 25. Qf4+ {[%clk 0:00:28]}  Kg8 {[%clk 0:00:27]} 26. Qe4 {[%clk 0:00:27]}  Kh7 {[%clk 0:00:27]} 27. Qxe6 {[%clk 0:00:25]}  Qb7 {[%clk 0:00:23]} 28. Ng5+ {[%clk 0:00:24]}  Kh6 {[%clk 0:00:24]} 29. Nf7+ {[%clk 0:00:22]}  Kh7 {[%clk 0:00:24]} 30. Ne4 {[%clk 0:00:20]}  Qxb2 {[%clk 0:00:23]} 31. Neg5+ {[%clk 0:00:20]}  Kg8 {[%clk 0:00:21]} 32. Nh6+ {[%clk 0:00:21]}  Kf8 {[%clk 0:00:21]} 33. Qf7# {[%clk 0:00:21]} 1-0


[Site "https://www.chess.com"]

[Event "Titled Tuesday Blitz April 19 Late 2022"]
[White "Shimanov, Aleksandr"]
[Black "Dauner, Benedikt"]
[WhiteFideId "4198603"]
[BlackFideId "16225899"]
[WhiteElo "2636"]
[BlackElo "2230"]
[Result "1-0"]
[Round "01"]
[TimeControl "180+1"]
[Date "2022.04.19"]
[WhiteClock "0:00:08"]
[BlackClock "0:00:04"]

1. d4 {[%clk 0:03:00]}  d5 {[%clk 0:02:59]} 2. Nc3 {[%clk 0:03:01]}  Nf6 {[%clk 0:02:55]} 3. Bf4 {[%clk 0:03:01]}  c5 {[%clk 0:02:55]} 4. e4 {[%clk 0:03:01]}  cxd4 {[%clk 0:02:51]} 5. Qxd4 {[%clk 0:03:01]}  Nc6 {[%clk 0:02:50]} 6. Bb5 {[%clk 0:03:01]}  Bd7 {[%clk 0:02:45]} 7. Bxc6 {[%clk 0:03:01]}  Bxc6 {[%clk 0:02:46]} 8. e5 {[%clk 0:03:01]}  Nd7 {[%clk 0:02:46]} 9. e6 {[%clk 0:03:00]}  fxe6 {[%clk 0:02:45]} 10. Nf3 {[%clk 0:02:59]}  Qb6 {[%clk 0:02:43]} 11. Qd2 {[%clk 0:02:59]}  d4 {[%clk 0:02:36]} 12. Qxd4 {[%clk 0:02:56]}  Bxf3 {[%clk 0:02:20]} 13. Qxb6 {[%clk 0:02:56]}  Nxb6 {[%clk 0:02:18]} 14. gxf3 {[%clk 0:02:56]}  g6 {[%clk 0:02:18]} 15. Be5 {[%clk 0:02:45]}  Rg8 {[%clk 0:02:17]} 16. Ne4 {[%clk 0:02:41]}  Bh6 {[%clk 0:02:14]} 17. Rd1 {[%clk 0:02:36]}  Rc8 {[%clk 0:02:07]} 18. Bc3 {[%clk 0:02:16]}  Rf8 {[%clk 0:02:00]} 19. Rd3 {[%clk 0:01:37]}  Nd5 {[%clk 0:02:00]} 20. Bd2 {[%clk 0:01:37]}  Bxd2+ {[%clk 0:01:48]} 21. Kxd2 {[%clk 0:01:38]}  Nb4 {[%clk 0:01:24]} 22. Rb3 {[%clk 0:01:37]}  Rxc2+ {[%clk 0:01:07]} 23. Kd1 {[%clk 0:01:37]}  Rc4 {[%clk 0:01:06]} 24. a3 {[%clk 0:01:32]}  Nd5 {[%clk 0:01:00]} 25. Re1 {[%clk 0:01:21]}  h6 {[%clk 0:00:48]} 26. Nd2 {[%clk 0:01:11]}  Rd4 {[%clk 0:00:37]} 27. Rxe6 {[%clk 0:01:04]}  Kf7 {[%clk 0:00:36]} 28. Re4 {[%clk 0:01:02]}  Rxe4 {[%clk 0:00:32]} 29. fxe4 {[%clk 0:01:03]}  Nf4 {[%clk 0:00:30]} 30. Rxb7 {[%clk 0:01:02]}  Rd8 {[%clk 0:00:26]} 31. Rxa7 {[%clk 0:01:00]}  Nd3 {[%clk 0:00:26]} 32. b4 {[%clk 0:01:00]}  Nxf2+ {[%clk 0:00:21]} 33. Ke2 {[%clk 0:01:00]}  Nd3 {[%clk 0:00:21]} 34. Nf3 {[%clk 0:00:56]}  Nf4+ {[%clk 0:00:20]} 35. Ke3 {[%clk 0:00:56]}  g5 {[%clk 0:00:19]} 36. Nd4 {[%clk 0:00:44]}  Ng2+ {[%clk 0:00:19]} 37. Kd3 {[%clk 0:00:44]}  Nf4+ {[%clk 0:00:19]} 38. Kc4 {[%clk 0:00:44]}  Rc8+ {[%clk 0:00:17]} 39. Kb5 {[%clk 0:00:43]}  g4 {[%clk 0:00:16]} 40. Nf5 {[%clk 0:00:43]}  Kf6 {[%clk 0:00:09]} 41. Nxh6 {[%clk 0:00:38]}  Kg5 {[%clk 0:00:06]} 42. Nf7+ {[%clk 0:00:35]}  Kf6 {[%clk 0:00:06]} 43. Nh6 {[%clk 0:00:33]}  Kg5 {[%clk 0:00:06]} 44. Nf5 {[%clk 0:00:34]}  e6 {[%clk 0:00:06]} 45. Rg7+ {[%clk 0:00:30]}  Kf6 {[%clk 0:00:06]} 46. Rxg4 {[%clk 0:00:30]}  Nd3 {[%clk 0:00:06]} 47. Nd6 {[%clk 0:00:27]}  Rb8+ {[%clk 0:00:05]} 48. Ka6 {[%clk 0:00:24]}  Ke5 {[%clk 0:00:03]} 49. Nc4+ {[%clk 0:00:23]}  Kd4 {[%clk 0:00:03]} 50. Nb6 {[%clk 0:00:22]}  e5 {[%clk 0:00:03]} 51. b5 {[%clk 0:00:15]}  Rh8 {[%clk 0:00:04]} 52. a4 {[%clk 0:00:15]}  Rh7 {[%clk 0:00:04]} 53. Nc8 {[%clk 0:00:09]}  Nc5+ {[%clk 0:00:04]} 54. Kb6 {[%clk 0:00:09]}  Nxa4+ {[%clk 0:00:04]} 55. Kc6 {[%clk 0:00:09]}  Nc3 {[%clk 0:00:04]} 56. b6 {[%clk 0:00:09]}  Rh6+ {[%clk 0:00:05]} 57. Nd6 {[%clk 0:00:09]}  Na4 {[%clk 0:00:04]} 58. b7 {[%clk 0:00:10]}  Rh8 {[%clk 0:00:04]} 59. Nc8 {[%clk 0:00:10]}  Nc3 {[%clk 0:00:03]} 60. b8=Q {[%clk 0:00:10]}  Rh6+ {[%clk 0:00:04]} 61. Nd6 {[%clk 0:00:09]}  Nxe4 {[%clk 0:00:03]} 62. Rxe4+ {[%clk 0:00:09]}  Kd3 {[%clk 0:00:04]} 63. Qb3+ {[%clk 0:00:09]}  Kd2 {[%clk 0:00:05]} 64. Qe3+ {[%clk 0:00:09]}  Kc2 {[%clk 0:00:04]} 65. Rc4+ {[%clk 0:00:08]} 1-0


[Site "https://www.chess.com"]

[Event "Titled Tuesday Blitz April 19 Late 2022"]
[White "Sirosh, Ilja"]
[Black "Petrova, Irina"]
[WhiteFideId "4500458"]
[BlackFideId "14124122"]
[WhiteElo "2241"]
[BlackElo "1993"]
[Result "1/2-1/2"]
[Round "01"]
[TimeControl "180+1"]
[Date "2022.04.19"]
[WhiteClock "0:00:28"]
[BlackClock "0:00:09"]

1. e4 {[%clk 0:02:58]}  c5 {[%clk 0:02:59]} 2. Nf3 {[%clk 0:02:58]}  Nc6 {[%clk 0:02:59]} 3. d4 {[%clk 0:02:59]}  cxd4 {[%clk 0:02:59]} 4. Nxd4 {[%clk 0:03:00]}  Nf6 {[%clk 0:02:59]} 5. Nc3 {[%clk 0:03:00]}  e5 {[%clk 0:02:59]} 6. Ndb5 {[%clk 0:03:00]}  d6 {[%clk 0:02:59]} 7. Bg5 {[%clk 0:03:00]}  a6 {[%clk 0:02:59]} 8. Na3 {[%clk 0:03:01]}  b5 {[%clk 0:02:58]} 9. Nd5 {[%clk 0:03:01]}  Be7 {[%clk 0:02:58]} 10. Bxf6 {[%clk 0:03:02]}  Bxf6 {[%clk 0:02:58]} 11. c4 {[%clk 0:03:03]}  b4 {[%clk 0:02:57]} 12. Nc2 {[%clk 0:03:03]}  Rb8 {[%clk 0:02:53]} 13. b3 {[%clk 0:03:01]}  O-O {[%clk 0:02:51]} 14. h4 {[%clk 0:03:00]}  Be6 {[%clk 0:02:29]} 15. g3 {[%clk 0:02:58]}  Bxd5 {[%clk 0:02:18]} 16. cxd5 {[%clk 0:02:56]}  Nd4 {[%clk 0:02:17]} 17. Nxd4 {[%clk 0:02:55]}  exd4 {[%clk 0:02:18]} 18. Rc1 {[%clk 0:02:27]}  d3 {[%clk 0:02:16]} 19. Bxd3 {[%clk 0:02:24]}  Bc3+ {[%clk 0:02:16]} 20. Kf1 {[%clk 0:02:24]}  Qf6 {[%clk 0:02:13]} 21. Kg2 {[%clk 0:02:22]}  a5 {[%clk 0:02:13]} 22. f4 {[%clk 0:02:13]}  Rfe8 {[%clk 0:02:08]} 23. Qf3 {[%clk 0:02:12]}  Qd4 {[%clk 0:01:59]} 24. Rcd1 {[%clk 0:02:12]}  Qc5 {[%clk 0:01:56]} 25. h5 {[%clk 0:02:02]}  a4 {[%clk 0:01:41]} 26. e5 {[%clk 0:01:42]}  dxe5 {[%clk 0:01:02]} 27. Qe4 {[%clk 0:01:42]}  exf4 {[%clk 0:00:53]} 28. Qxh7+ {[%clk 0:01:40]}  Kf8 {[%clk 0:00:54]} 29. Qh8+ {[%clk 0:01:21]}  Ke7 {[%clk 0:00:54]} 30. Rhe1+ {[%clk 0:01:21]}  Bxe1 {[%clk 0:00:54]} 31. Rxe1+ {[%clk 0:01:22]}  Kd7 {[%clk 0:00:51]} 32. Bf5+ {[%clk 0:01:22]}  Kd6 {[%clk 0:00:39]} 33. Rxe8 {[%clk 0:01:21]}  Qxd5+ {[%clk 0:00:29]} 34. Be4 {[%clk 0:01:20]}  Qxe4+ {[%clk 0:00:28]} 35. Rxe4 {[%clk 0:01:18]}  Rxh8 {[%clk 0:00:29]} 36. Rxf4 {[%clk 0:01:11]}  axb3 {[%clk 0:00:28]} 37. axb3 {[%clk 0:01:12]}  f6 {[%clk 0:00:23]} 38. g4 {[%clk 0:01:10]}  Rb8 {[%clk 0:00:19]} 39. Rc4 {[%clk 0:01:10]}  Rb5 {[%clk 0:00:16]} 40. Kf3 {[%clk 0:01:10]}  Kd7 {[%clk 0:00:12]} 41. Kf4 {[%clk 0:01:10]}  Kd6 {[%clk 0:00:12]} 42. Rc8 {[%clk 0:01:10]}  Rb7 {[%clk 0:00:10]} 43. Kf5 {[%clk 0:01:08]}  Rb5+ {[%clk 0:00:10]} 44. Kf4 {[%clk 0:01:08]}  Rb7 {[%clk 0:00:10]} 45. Rf8 {[%clk 0:01:08]}  Ke6 {[%clk 0:00:10]} 46. Re8+ {[%clk 0:01:06]}  Kf7 {[%clk 0:00:09]} 47. Re4 {[%clk 0:01:04]}  Rb6 {[%clk 0:00:08]} 48. Ke3 {[%clk 0:00:55]}  Rb7 {[%clk 0:00:08]} 49. Kd3 {[%clk 0:00:53]}  Rb6 {[%clk 0:00:07]} 50. Kc4 {[%clk 0:00:52]}  Rb7 {[%clk 0:00:07]} 51. Kc5 {[%clk 0:00:53]}  g6 {[%clk 0:00:06]} 52. hxg6+ {[%clk 0:00:51]}  Kxg6 {[%clk 0:00:07]} 53. Rxb4 {[%clk 0:00:51]}  Rxb4 {[%clk 0:00:07]} 54. Kxb4 {[%clk 0:00:51]}  Kg5 {[%clk 0:00:08]} 55. Kc5 {[%clk 0:00:32]}  Kxg4 {[%clk 0:00:08]} 56. b4 {[%clk 0:00:32]}  f5 {[%clk 0:00:09]} 57. b5 {[%clk 0:00:30]}  f4 {[%clk 0:00:10]} 58. Kd4 {[%clk 0:00:30]}  f3 {[%clk 0:00:10]} 59. Ke3 {[%clk 0:00:31]}  Kg3 {[%clk 0:00:10]} 60. b6 {[%clk 0:00:31]}  f2 {[%clk 0:00:10]} 61. b7 {[%clk 0:00:32]}  f1=Q {[%clk 0:00:10]} 62. b8=Q+ {[%clk 0:00:32]}  Kg2 {[%clk 0:00:10]} 63. Qg8+ {[%clk 0:00:32]}  Kh1 {[%clk 0:00:10]} 64. Qh7+ {[%clk 0:00:32]}  Kg1 {[%clk 0:00:10]} 65. Qg6+ {[%clk 0:00:29]}  Kh1 {[%clk 0:00:10]} 66. Qh5+ {[%clk 0:00:29]}  Kg2 {[%clk 0:00:09]} 67. Qg4+ {[%clk 0:00:29]}  Kh2 {[%clk 0:00:08]} 68. Qh4+ {[%clk 0:00:29]}  Qh3+ {[%clk 0:00:08]} 69. Qxh3+ {[%clk 0:00:28]}  Kxh3 {[%clk 0:00:09]} 1/2-1/2


[Site "https://www.chess.com"]

[Event "Titled Tuesday Blitz April 19 Late 2022"]
[White "Soysal, Serkan"]
[Black "Nathan, Nitish"]
[WhiteFideId "6349250"]
[BlackFideId "30927870"]
[WhiteElo "2440"]
[BlackElo "2244"]
[Result "0-1"]
[Round "01"]
[TimeControl "180+1"]
[Date "2022.04.19"]
[WhiteClock "0:00:22"]
[BlackClock "0:00:52"]

1. e4 {[%clk 0:02:57]}  c5 {[%clk 0:02:58]} 2. Nc3 {[%clk 0:02:56]}  Nc6 {[%clk 0:02:57]} 3. Nf3 {[%clk 0:02:52]}  g6 {[%clk 0:02:56]} 4. d4 {[%clk 0:02:50]}  cxd4 {[%clk 0:02:57]} 5. Nxd4 {[%clk 0:02:51]}  Bg7 {[%clk 0:02:57]} 6. Be3 {[%clk 0:02:52]}  d6 {[%clk 0:02:49]} 7. Bc4 {[%clk 0:02:41]}  Nf6 {[%clk 0:02:47]} 8. f3 {[%clk 0:02:41]}  h5 {[%clk 0:02:47]} 9. Qd2 {[%clk 0:02:40]}  Bd7 {[%clk 0:02:44]} 10. Bb3 {[%clk 0:02:39]}  Rc8 {[%clk 0:02:43]} 11. Nxc6 {[%clk 0:02:32]}  bxc6 {[%clk 0:02:38]} 12. O-O {[%clk 0:02:22]}  O-O {[%clk 0:02:36]} 13. Rad1 {[%clk 0:02:21]}  Qc7 {[%clk 0:02:31]} 14. Bh6 {[%clk 0:02:09]}  c5 {[%clk 0:02:28]} 15. Bxg7 {[%clk 0:02:08]}  Kxg7 {[%clk 0:02:28]} 16. Bc4 {[%clk 0:02:01]}  Rb8 {[%clk 0:02:23]} 17. b3 {[%clk 0:02:00]}  Qb6 {[%clk 0:02:16]} 18. f4 {[%clk 0:01:43]}  Bg4 {[%clk 0:02:12]} 19. Rde1 {[%clk 0:01:43]}  Rbd8 {[%clk 0:02:09]} 20. f5 {[%clk 0:01:32]}  h4 {[%clk 0:02:03]} 21. h3 {[%clk 0:01:23]}  Bh5 {[%clk 0:02:01]} 22. Nd5 {[%clk 0:01:17]}  Nxd5 {[%clk 0:02:01]} 23. exd5 {[%clk 0:01:18]}  Qc7 {[%clk 0:01:59]} 24. Qg5 {[%clk 0:01:05]}  Rde8 {[%clk 0:01:47]} 25. Rxe7 {[%clk 0:00:54]}  Rxe7 {[%clk 0:01:38]} 26. f6+ {[%clk 0:00:53]}  Kg8 {[%clk 0:01:38]} 27. fxe7 {[%clk 0:00:54]}  Re8 {[%clk 0:01:38]} 28. Re1 {[%clk 0:00:49]}  Kg7 {[%clk 0:01:30]} 29. Qxh4 {[%clk 0:00:38]}  f6 {[%clk 0:01:27]} 30. g4 {[%clk 0:00:36]}  g5 {[%clk 0:01:20]} 31. Qxh5 {[%clk 0:00:30]}  Rxe7 {[%clk 0:01:20]} 32. Rf1 {[%clk 0:00:26]}  Re3 {[%clk 0:01:13]} 33. Bd3 {[%clk 0:00:25]}  Rxd3 {[%clk 0:01:07]} 34. cxd3 {[%clk 0:00:26]}  Qe7 {[%clk 0:01:06]} 35. Rf2 {[%clk 0:00:20]}  Qe3 {[%clk 0:01:00]} 36. Kg2 {[%clk 0:00:21]}  Qxd3 {[%clk 0:00:59]} 37. Qe8 {[%clk 0:00:21]}  Qxd5+ {[%clk 0:00:58]} 38. Rf3 {[%clk 0:00:21]}  Qd2+ {[%clk 0:00:58]} 39. Kg3 {[%clk 0:00:22]}  Qd4 {[%clk 0:00:54]} 40. Qe7+ {[%clk 0:00:22]}  Kg8 {[%clk 0:00:53]} 41. Qxf6 {[%clk 0:00:22]}  Qg1# {[%clk 0:00:52]} 0-1


[Site "https://www.chess.com"]

[Event "Titled Tuesday Blitz April 19 Late 2022"]
[White "Suleymanli, Aydin"]
[Black "Derraugh, Geordie"]
[WhiteFideId "13413937"]
[BlackFideId "2603950"]
[WhiteElo "2481"]
[BlackElo "2116"]
[Result "1-0"]
[Round "01"]
[TimeControl "180+1"]
[Date "2022.04.19"]
[WhiteClock "0:01:15"]
[BlackClock "0:00:01"]

1. d4 {[%clk 0:02:59]}  Nf6 {[%clk 0:02:59]} 2. c4 {[%clk 0:03:00]}  g6 {[%clk 0:02:59]} 3. Nc3 {[%clk 0:03:00]}  d5 {[%clk 0:03:00]} 4. cxd5 {[%clk 0:02:52]}  Nxd5 {[%clk 0:03:00]} 5. e4 {[%clk 0:02:52]}  Nxc3 {[%clk 0:03:01]} 6. bxc3 {[%clk 0:02:53]}  Bg7 {[%clk 0:03:01]} 7. Bc4 {[%clk 0:02:54]}  c5 {[%clk 0:03:01]} 8. Ne2 {[%clk 0:02:54]}  O-O {[%clk 0:03:01]} 9. Be3 {[%clk 0:02:55]}  Nc6 {[%clk 0:03:01]} 10. Rc1 {[%clk 0:02:55]}  cxd4 {[%clk 0:03:01]} 11. cxd4 {[%clk 0:02:56]}  Qa5+ {[%clk 0:03:00]} 12. Kf1 {[%clk 0:02:56]}  e6 {[%clk 0:02:58]} 13. h4 {[%clk 0:02:56]}  h5 {[%clk 0:02:57]} 14. g4 {[%clk 0:02:55]}  hxg4 {[%clk 0:02:54]} 15. h5 {[%clk 0:02:55]}  gxh5 {[%clk 0:02:50]} 16. Nf4 {[%clk 0:02:54]}  e5 {[%clk 0:02:44]} 17. Rxh5 {[%clk 0:02:07]}  exf4 {[%clk 0:02:44]} 18. Rxa5 {[%clk 0:02:05]}  Nxa5 {[%clk 0:02:34]} 19. Bxf4 {[%clk 0:02:05]}  Nxc4 {[%clk 0:02:34]} 20. Rxc4 {[%clk 0:02:05]}  Bd7 {[%clk 0:02:31]} 21. Rc7 {[%clk 0:02:05]}  Rad8 {[%clk 0:02:14]} 22. Kg1 {[%clk 0:02:03]}  a6 {[%clk 0:02:07]} 23. Bh6 {[%clk 0:02:02]}  Bc8 {[%clk 0:01:21]} 24. Bxg7 {[%clk 0:01:58]}  Kxg7 {[%clk 0:01:22]} 25. Qd2 {[%clk 0:01:59]}  Kg6 {[%clk 0:01:19]} 26. Qf4 {[%clk 0:01:56]}  f6 {[%clk 0:00:48]} 27. f3 {[%clk 0:01:48]}  Rg8 {[%clk 0:00:33]} 28. Kf2 {[%clk 0:01:33]}  Be6 {[%clk 0:00:06]} 29. d5 {[%clk 0:01:32]}  Bc8 {[%clk 0:00:02]} 30. fxg4 {[%clk 0:01:31]}  Rde8 {[%clk 0:00:01]} 31. g5 {[%clk 0:01:26]}  Rgf8 {[%clk 0:00:02]} 32. Ke3 {[%clk 0:01:21]}  fxg5 {[%clk 0:00:02]} 33. Qd6+ {[%clk 0:01:16]}  Rf6 {[%clk 0:00:02]} 34. Qh2 {[%clk 0:01:16]}  Rh8 {[%clk 0:00:01]} 35. Qxh8 {[%clk 0:01:15]} 1-0


[Site "https://www.chess.com"]

[Event "Titled Tuesday Blitz April 19 Late 2022"]
[White "Szpar, Milosz"]
[Black "Rosenberg, Evan S"]
[WhiteFideId "1184989"]
[BlackFideId "2019299"]
[WhiteElo "2447"]
[BlackElo "2360"]
[Result "1-0"]
[Round "01"]
[TimeControl "180+1"]
[Date "2022.04.19"]
[WhiteClock "0:02:56"]
[BlackClock "0:00:01"]

1. e4 {[%clk 0:02:58]}  e5 {[%clk 0:02:59]} 2. Nf3 {[%clk 0:02:58]}  Nc6 {[%clk 0:02:59]} 3. Bb5 {[%clk 0:02:59]}  Nf6 {[%clk 0:02:58]} 4. O-O {[%clk 0:02:59]}  Nxe4 {[%clk 0:02:59]} 5. d4 {[%clk 0:02:59]}  Nd6 {[%clk 0:02:58]} 6. Bxc6 {[%clk 0:02:58]}  dxc6 {[%clk 0:02:58]} 7. dxe5 {[%clk 0:02:59]}  Nf5 {[%clk 0:02:59]} 8. Qxd8+ {[%clk 0:02:59]}  Kxd8 {[%clk 0:03:00]} 9. Rd1+ {[%clk 0:03:00]}  Ke8 {[%clk 0:03:00]} 10. h3 {[%clk 0:03:01]}  h5 {[%clk 0:02:51]} 11. Nc3 {[%clk 0:02:59]}  Be6 {[%clk 0:02:44]} 12. Bg5 {[%clk 0:02:58]}  Be7 {[%clk 0:02:39]} 13. b3 {[%clk 0:02:57]}  Bxg5 {[%clk 0:02:12]} 14. Nxg5 {[%clk 0:02:58]}  Rh6 {[%clk 0:02:13]} 15. Nce4 {[%clk 0:02:57]}  b6 {[%clk 0:02:04]} 16. f4 {[%clk 0:02:57]}  Bd5 {[%clk 0:02:01]} 17. Kf2 {[%clk 0:02:56]}  h4 {[%clk 0:01:52]} 18. c4 {[%clk 0:02:54]}  Bxe4 {[%clk 0:01:52]} 19. Nxe4 {[%clk 0:02:54]}  Rd8 {[%clk 0:01:45]} 20. Rxd8+ {[%clk 0:02:54]}  Kxd8 {[%clk 0:01:46]} 21. Rd1+ {[%clk 0:02:55]}  Ke7 {[%clk 0:01:47]} 22. c5 {[%clk 0:02:55]}  Rh8 {[%clk 0:01:39]} 23. Kf3 {[%clk 0:02:56]}  f6 {[%clk 0:01:16]} 24. exf6+ {[%clk 0:02:55]}  gxf6 {[%clk 0:01:16]} 25. Re1 {[%clk 0:02:56]}  Kf7 {[%clk 0:01:10]} 26. Kg4 {[%clk 0:02:57]}  Kg6 {[%clk 0:00:52]} 27. cxb6 {[%clk 0:02:53]}  axb6 {[%clk 0:00:51]} 28. b4 {[%clk 0:02:51]}  Ra8 {[%clk 0:00:39]} 29. Rc1 {[%clk 0:02:51]}  Rxa2 {[%clk 0:00:36]} 30. Rxc6 {[%clk 0:02:51]}  Rxg2+ {[%clk 0:00:36]} 31. Kf3 {[%clk 0:02:52]}  Nd4+ {[%clk 0:00:33]} 32. Kxg2 {[%clk 0:02:52]}  Nxc6 {[%clk 0:00:34]} 33. b5 {[%clk 0:02:53]}  Nd4 {[%clk 0:00:34]} 34. Nc3 {[%clk 0:02:54]}  Kf5 {[%clk 0:00:30]} 35. Kf2 {[%clk 0:02:54]}  Kxf4 {[%clk 0:00:22]} 36. Nd5+ {[%clk 0:02:55]}  Ke5 {[%clk 0:00:20]} 37. Nxc7 {[%clk 0:02:56]}  f5 {[%clk 0:00:17]} 38. Ke3 {[%clk 0:02:56]}  f4+ {[%clk 0:00:16]} 39. Kd3 {[%clk 0:02:56]}  f3 {[%clk 0:00:07]} 40. Ke3 {[%clk 0:02:56]}  Nc2+ {[%clk 0:00:02]} 41. Kxf3 {[%clk 0:02:56]}  Nd4+ {[%clk 0:00:02]} 42. Kg4 {[%clk 0:02:56]}  Kd6 {[%clk 0:00:01]} 43. Na8 {[%clk 0:02:56]} 1-0


[Site "https://www.chess.com"]